bitfinex-derivatives/quotes_BTCF0:USTF0_20250918
["timestamp","ask_amount","ask_price","bid_price","bid_amount"]
[1758227263275,1.41566057,117540.0,117530.0,1.54962097]
[1758227263876,1.1341896,117540.0,117530.0,1.54962097]
[1758227264078,1.41566057,117540.0,117530.0,1.54962097]
[1758227269491,0.64514057,117540.0,117530.0,1.54962097]
[1758227269786,1.41566057,117540.0,117530.0,1.54962097]
[1758227269988,0.64514057,117540.0,117530.0,1.54962097]
[1758227270287,1.41566057,117540.0,117530.0,1.54962097]
[1758227271589,0.64514057,117540.0,117530.0,1.54962097]
[1758227271788,1.41566057,117540.0,117530.0,1.54962097]
[1758227273392,1.41566057,117540.0,117530.0,1.26815]
[1758227281393,1.41562057,117540.0,117530.0,1.63466777]
[1758227281791,1.1341496,117540.0,117530.0,1.78727282]
[1758227281991,1.41562057,117540.0,117530.0,1.78727282]
[1758227284796,0.64514057,117540.0,117530.0,1.78727282]
[1758227284998,1.41562057,117540.0,117530.0,1.78727282]
[1758227287387,0.64514057,117540.0,117530.0,1.78727282]
[1758227287892,1.41558057,117540.0,117530.0,1.78727282]
[1758227288700,1.1341096,117540.0,117530.0,1.78727282]
[1758227289794,0.3636696,117540.0,117530.0,1.78727282]
[1758227289994,1.1341096,117540.0,117530.0,1.78727282]
[1758227295893,1.55621607,117540.0,117530.0,1.92790832]
[1758227297004,1.55621607,117540.0,117530.0,1.77530327]
[1758227303415,1.55621607,117540.0,117530.0,1.92790832]
[1758227305104,0.3636696,117540.0,117530.0,1.92790832]
[1758227305408,1.55617607,117540.0,117530.0,1.92790832]
[1758227310611,0.52207607,117540.0,117530.0,1.92790832]
[1758227310819,1.29247607,117540.0,117530.0,1.93862832]
[1758227311117,1.29247607,117540.0,117530.0,1.92790832]
[1758227312422,0.0999696,117540.0,117530.0,1.92790832]
[1758227312614,1.29243607,117540.0,117530.0,1.92790832]
[1758227313421,0.52207607,117540.0,117530.0,1.92790832]
[1758227313622,1.29243607,117540.0,117530.0,1.92790832]
[1758227316425,0.77036,117540.0,117530.0,2.61073479]
[1758227317018,0.77036,117540.0,117530.0,2.45812974]
[1758227317716,0.0850376,117550.0,117530.0,2.45812974]
[1758227317920,0.54575407,117550.0,117540.0,1.20501294]
[1758227318222,1.31611407,117550.0,117540.0,1.99501294]
[1758227318820,1.31611407,117550.0,117540.0,2.08005254]
[1758227319021,1.31711407,117550.0,117540.0,2.08005254]
[1758227319416,1.31611407,117550.0,117540.0,2.08005254]
[1758227319623,1.31711407,117550.0,117540.0,1.2358396]
[1758227319824,1.31711407,117550.0,117540.0,2.08205254]
[1758227320218,0.8950076,117550.0,117540.0,2.08205254]
[1758227320418,1.31711407,117550.0,117540.0,2.08205254]
[1758227325321,1.31711407,117550.0,117540.0,1.99701294]
[1758227325527,1.31711407,117550.0,117540.0,1.57490647]
[1758227325727,1.31711407,117550.0,117540.0,1.21410647]
[1758227325927,1.31711407,117550.0,117540.0,1.57490647]
[1758227326830,1.31711407,117550.0,117540.0,1.65994607]
[1758227329131,1.31711407,117550.0,117540.0,1.57490647]
[1758227342134,0.8950076,117550.0,117540.0,1.57490647]
[1758227342338,1.56711407,117550.0,117540.0,1.1528]
[1758227342531,1.56711407,117550.0,117540.0,1.57490647]
[1758227343133,1.98922054,117550.0,117540.0,0.792]
[1758227344743,1.56711407,117550.0,117540.0,0.792]
[1758227345639,1.56699407,117550.0,117540.0,0.792]
[1758227345834,1.56699407,117550.0,117540.0,1.23715647]
[1758227346242,0.79675407,117550.0,117540.0,1.23715647]
[1758227346442,1.56695407,117550.0,117540.0,1.23715647]
[1758227347741,0.79675407,117550.0,117540.0,0.81505]
[1758227347943,0.79675407,117550.0,117540.0,1.23715647]
[1758227348142,1.56695407,117550.0,117540.0,1.23715647]
[1758227349743,0.3746476,117550.0,117540.0,1.23715647]
[1758227350043,1.56695407,117550.0,117540.0,1.23715647]
[1758227351542,0.79675407,117550.0,117540.0,1.23715647]
[1758227351845,1.56695407,117550.0,117540.0,1.59795647]
[1758227352045,1.56695407,117550.0,117540.0,1.23715647]
[1758227354750,1.56695407,117550.0,117540.0,0.81505]
[1758227354940,1.56695407,117550.0,117540.0,1.23715647]
[1758227356651,1.56695407,117550.0,117540.0,0.81505]
[1758227356854,1.56695407,117550.0,117540.0,1.23715647]
[1758227357754,1.42625605,117550.0,117540.0,0.81505]
[1758227360254,0.65605605,117550.0,117540.0,0.81505]
[1758227360456,1.42621605,117550.0,117540.0,0.81505]
[1758227363163,0.65605605,117550.0,117540.0,0.81505]
[1758227363360,1.42621605,117550.0,117540.0,0.81505]
[1758227370661,1.42621605,117550.0,117540.0,1.17585]
[1758227371961,1.42621605,117550.0,117540.0,0.81505]
[1758227372162,1.42621605,117550.0,117540.0,1.17585]
[1758227379373,1.16755666,117550.0,117540.0,1.17585]
[1758227384973,1.16755666,117550.0,117540.0,1.28264092]
[1758227391075,1.16755666,117550.0,117540.0,1.17585]
[1758227393577,1.16755666,117550.0,117540.0,0.81505]
[1758227395180,1.16755666,117550.0,117540.0,1.17585]
[1758227397373,1.16735666,117550.0,117540.0,1.17585]
[1758227399276,0.39739666,117550.0,117540.0,1.17585]
[1758227399582,1.16731666,117550.0,117540.0,1.17585]
[1758227400179,0.39739666,117550.0,117540.0,1.17585]
[1758227400382,0.1097029,117550.0,117540.0,2.0022569]
[1758227400682,0.77092,117550.0,117540.0,2.0872971]
[1758227400886,0.77092,117550.0,117540.0,2.23990215]
[1758227401384,0.855953,117550.0,117540.0,2.23990215]
[1758227402086,0.77092,117550.0,117540.0,2.23990215]
[1758227405685,1.03462,117550.0,117540.0,2.23990215]
[1758227405881,1.119653,117550.0,117540.0,2.23990215]
[1758227406976,1.133433,117550.0,117540.0,2.15486195]
[1758227407177,1.133433,117550.0,117540.0,1.8598635]
[1758227407594,1.41484145,117550.0,117540.0,1.8598635]
[1758227407888,0.27848,117550.0,117540.0,1.9449037]
[1758227408082,0.77088,117550.0,117540.0,2.23990215]
[1758227408293,0.77088,117550.0,117540.0,2.0872971]
[1758227408491,0.001,117550.0,117540.0,1.8372971]
[1758227408684,0.001,117550.0,117540.0,2.36870555]
[1758227408996,0.77088,117550.0,117540.0,2.0872971]
[1758227409184,0.001,117550.0,117540.0,2.0872971]
[1758227409383,0.77088,117550.0,117540.0,2.0872971]
[1758227409590,0.69855866,117550.0,117540.0,2.0872971]
[1758227410090,0.02435,117560.0,117550.0,0.1224629]
[1758227410389,0.79409,117560.0,117550.0,1.73118996]
[1758227410588,0.02425,117560.0,117550.0,1.62467135]
[1758227410796,0.79409,117560.0,117550.0,1.62467135]
[1758227411589,0.79409,117560.0,117550.0,1.62567135]
[1758227412390,0.79609,117560.0,117550.0,1.62567135]
[1758227412900,0.8948957,117560.0,117550.0,1.54063845]
[1758227413391,0.8948957,117560.0,117550.0,1.62567135]
[1758227413685,1.4577126,117560.0,117550.0,1.35212488]
[1758227414190,1.17630415,117560.0,117550.0,1.35212488]
[1758227414491,1.17630415,117560.0,117550.0,1.42012658]
[1758227415292,1.17630415,117560.0,117550.0,1.59505015]
[1758227415693,0.8948957,117560.0,117550.0,1.59505015]
[1758227417392,0.8948557,117560.0,117550.0,1.59505015]
[1758227418493,0.1250557,117560.0,117550.0,1.59505015]
[1758227418696,1.17622415,117560.0,117550.0,1.59505015]
[1758227418993,0.8948157,117560.0,117550.0,1.59505015]
[1758227419892,1.31681663,117560.0,117550.0,1.73564263]
[1758227422497,0.8948157,117560.0,117550.0,1.73564263]
[1758227422796,1.31681663,117560.0,117550.0,1.73564263]
[1758227424497,0.54705663,117560.0,117550.0,1.73564263]
[1758227424797,1.31677663,117560.0,117550.0,1.73564263]
[1758227424998,0.8947757,117560.0,117550.0,1.73564263]
[1758227425197,1.31677663,117560.0,117550.0,1.73564263]
[1758227427201,1.31677663,117560.0,117550.0,1.82067563]
[1758227429202,1.31677663,117560.0,117550.0,1.97328068]
[1758227430192,0.1250557,117560.0,117550.0,1.97328068]
[1758227430393,0.79597,117560.0,117550.0,1.98776068]
[1758227430611,0.8809958,117560.0,117550.0,1.98776068]
[1758227430794,0.8809958,117560.0,117550.0,1.83515563]
[1758227431599,0.8809958,117560.0,117550.0,1.98776068]
[1758227433706,0.8955158,117560.0,117550.0,1.98776068]
[1758227434795,0.8955158,117560.0,117550.0,1.83515563]
[1758227435497,0.79597,117560.0,117550.0,1.83515563]
[1758227436998,0.8809958,117560.0,117550.0,1.83515563]
[1758227437507,0.1112758,117560.0,117550.0,1.83515563]
[1758227437811,0.79593,117560.0,117550.0,1.83515563]
[1758227438607,0.8809558,117560.0,117550.0,1.83515563]
[1758227441002,0.1112758,117560.0,117550.0,1.83515563]
[1758227441209,0.8809158,117560.0,117550.0,1.98776068]
[1758227441400,0.8954358,117560.0,117550.0,1.98776068]
[1758227444504,0.8954358,117560.0,117550.0,1.83515563]
[1758227445007,0.77164,117560.0,117550.0,2.50715656]
[1758227445498,0.77164,117560.0,117550.0,2.65976161]
[1758227451111,0.002,117560.0,117550.0,2.65976161]
[1758227451413,0.77164,117560.0,117550.0,2.65976161]
[1758227453911,0.002,117560.0,117550.0,2.65976161]
[1758227454211,0.7716,117560.0,117550.0,2.65976161]
[1758227458513,0.7696,117560.0,117550.0,2.65976161]
[1758227458717,0.76139361,117560.0,117550.0,2.65976161]
[1758227459913,0.76139361,117560.0,117550.0,3.02056161]
[1758227460923,0.12736908,117570.0,117560.0,0.1220658]
[1758227461133,0.7696,117570.0,117560.0,2.59886859]
[1758227461422,0.7696,117570.0,117560.0,2.61609926]
[1758227461620,0.7696,117570.0,117560.0,2.19409833]
[1758227461918,0.69727866,117570.0,117560.0,2.19409833]
[1758227462320,0.69727866,117570.0,117560.0,2.17686766]
[1758227462616,0.69727866,117570.0,117560.0,2.19393151]
[1758227463121,0.69827866,117570.0,117560.0,2.19393151]
[1758227463322,0.69927866,117570.0,117560.0,2.19393151]
[1758227465320,0.002,117570.0,117560.0,2.61593244]
[1758227465526,0.77152,117570.0,117560.0,2.19393151]
[1758227465825,0.77152,117570.0,117560.0,2.19424835]
[1758227475127,0.77152,117570.0,117560.0,2.61624928]
[1758227476031,0.69919865,117570.0,117560.0,2.61624928]
[1758227477536,0.69919865,117570.0,117560.0,1.35024649]
[1758227477734,0.69919865,117570.0,117560.0,2.61624928]
[1758227479535,0.69919865,117570.0,117560.0,1.35024649]
[1758227479733,0.69919865,117570.0,117560.0,2.61624928]
[1758227481837,0.69919865,117570.0,117560.0,1.91265287]
[1758227483232,0.0851162,117580.0,117570.0,0.0850186]
[1758227483438,0.8766962,117580.0,117570.0,1.57945179]
[1758227484940,0.79368,117580.0,117570.0,1.57945179]
[1758227485537,0.79468,117580.0,117570.0,1.57945179]
[1758227485840,1.1433913,117580.0,117570.0,1.57945179]
[1758227486641,1.1423913,117580.0,117570.0,1.57945179]
[1758227486841,1.1423913,117580.0,117570.0,1.58145179]
[1758227487240,1.1423913,117580.0,117570.0,1.73361944]
[1758227487430,1.43760449,117580.0,117570.0,1.64706098]
[1758227487837,1.43560449,117580.0,117570.0,1.64806098]
[1758227488142,1.43560449,117580.0,117570.0,1.49589333]
[1758227488340,1.43560449,117580.0,117570.0,1.21469014]
[1758227488544,1.43560449,117580.0,117570.0,1.49589333]
[1758227489954,1.43560449,117580.0,117570.0,1.21469014]
[1758227490148,0.91620449,117580.0,117570.0,1.49589333]
[1758227490349,1.68556449,117580.0,117570.0,1.49589333]
[1758227490650,0.91620449,117580.0,117570.0,1.49589333]
[1758227490851,1.68556449,117580.0,117570.0,1.49589333]
[1758227491550,1.42186449,117580.0,117570.0,1.49589333]
[1758227491955,0.65250449,117580.0,117570.0,1.49589333]
[1758227492250,1.42186449,117580.0,117570.0,1.49589333]
[1758227492552,1.1406613,117580.0,117570.0,1.49589333]
[1758227496041,0.3713013,117580.0,117570.0,1.49589333]
[1758227496345,1.1406613,117580.0,117570.0,1.49589333]
[1758227499254,0.8906613,117580.0,117570.0,1.49589333]
[1758227499849,0.1213013,117580.0,117570.0,1.49589333]
[1758227500051,0.8906613,117580.0,117570.0,1.49589333]
[1758227501851,0.8906613,117580.0,117570.0,1.58091193]
[1758227504059,0.8906613,117580.0,117570.0,1.29970874]
[1758227504359,0.8906613,117580.0,117570.0,1.58091193]
[1758227505160,0.8906613,117580.0,117570.0,1.29970874]
[1758227505459,0.8906613,117580.0,117570.0,1.58091193]
[1758227507761,0.8906613,117580.0,117570.0,1.49589333]
[1758227508860,0.8906613,117580.0,117570.0,1.58091193]
[1758227509157,0.8906613,117580.0,117570.0,1.49589333]
[1758227509361,0.8906613,117580.0,117570.0,1.58091193]
[1758227513764,0.8906613,117580.0,117570.0,1.49589333]
[1758227514467,0.8906613,117580.0,117570.0,1.58091193]
[1758227515154,0.03629,117580.0,117570.0,1.58091193]
[1758227515354,0.80561,117580.0,117570.0,1.58091193]
[1758227516566,0.8906213,117580.0,117570.0,1.58091193]
[1758227519065,0.8906213,117580.0,117570.0,1.49589333]
[1758227519370,0.80557,117580.0,117570.0,1.58091193]
[1758227521364,0.8905813,117580.0,117570.0,1.49589333]
[1758227522166,0.80557,117580.0,117570.0,1.58091193]
[1758227525367,0.03629,117580.0,117570.0,1.58091193]
[1758227525568,0.80557,117580.0,117570.0,1.58091193]
[1758227525764,1.17178449,117580.0,117570.0,1.21469014]
[1758227525964,1.17178449,117580.0,117570.0,1.49589333]
[1758227527574,1.17178449,117580.0,117570.0,1.21469014]
[1758227527771,1.17178449,117580.0,117570.0,1.49589333]
[1758227530271,0.8905813,117580.0,117570.0,1.49589333]
[1758227530465,1.17178449,117580.0,117570.0,1.58091193]
[1758227530765,1.17178449,117580.0,117570.0,1.49589333]
[1758227531972,0.1213013,117580.0,117570.0,1.49589333]
[1758227532171,0.8905813,117580.0,117570.0,1.49589333]
[1758227532973,0.8905813,117580.0,117570.0,1.58091193]
[1758227533172,0.1213013,117580.0,117570.0,1.58091193]
[1758227533574,0.8905813,117580.0,117570.0,1.58091193]
[1758227533972,0.8905813,117580.0,117570.0,1.73307958]
[1758227534172,0.8905813,117580.0,117570.0,1.45187639]
[1758227534474,0.8905813,117580.0,117570.0,1.73307958]
[1758227534774,0.8905813,117580.0,117570.0,1.58091193]
[1758227534975,0.8905813,117580.0,117570.0,1.49589333]
[1758227536374,0.8905813,117580.0,117570.0,1.64806098]
[1758227540173,1.17178449,117580.0,117570.0,1.64806098]
[1758227542267,1.17178449,117580.0,117570.0,1.28726098]
[1758227542471,1.17178449,117580.0,117570.0,1.64806098]
[1758227542773,0.40250449,117580.0,117570.0,1.73307958]
[1758227542978,1.17174449,117580.0,117570.0,1.73307958]
[1758227543178,1.17174449,117580.0,117570.0,1.64806098]
[1758227543477,1.17174449,117580.0,117570.0,1.36685779]
[1758227543679,1.17174449,117580.0,117570.0,1.64806098]
[1758227543983,1.31241284,117580.0,117570.0,1.78872933]
[1758227545980,1.31241284,117580.0,117570.0,1.87374793]
[1758227548783,1.31241284,117580.0,117570.0,1.78872933]
[1758227549984,1.31241284,117580.0,117570.0,1.63656168]
[1758227550477,1.31241284,117580.0,117570.0,1.27576168]
[1758227554989,1.31241284,117580.0,117570.0,1.72158028]
[1758227555388,0.54317284,117580.0,117570.0,1.72158028]
[1758227555590,1.31253284,117580.0,117570.0,1.27576168]
[1758227555789,1.31253284,117580.0,117570.0,1.72158028]
[1758227556290,1.31253284,117580.0,117570.0,1.29970874]
[1758227556588,1.31253284,117580.0,117570.0,1.72158028]
[1758227557790,1.31253284,117580.0,117570.0,1.63656168]
[1758227558691,1.31253284,117580.0,117570.0,1.72158028]
[1758227560179,0.8906613,117580.0,117570.0,1.72158028]
[1758227560383,1.31253284,117580.0,117570.0,1.72158028]
[1758227561290,1.31253284,117580.0,117570.0,1.87374793]
[1758227561895,0.1213013,117580.0,117570.0,1.87374793]
[1758227562089,1.31241284,117580.0,117570.0,1.87374793]
[1758227562394,1.31241284,117580.0,117570.0,1.45187639]
[1758227562591,1.31241284,117580.0,117570.0,1.87374793]
[1758227568404,1.31241284,117580.0,117570.0,1.45187639]
[1758227568607,1.31241284,117580.0,117570.0,1.87374793]
[1758227568800,1.31241284,117580.0,117570.0,1.51294793]
[1758227569103,1.31241284,117580.0,117570.0,1.87374793]
[1758227574213,0.8905413,117580.0,117570.0,1.87374793]
[1758227574507,1.31241284,117580.0,117570.0,1.87374793]
[1758227583712,1.31241284,117580.0,117570.0,1.72158028]
[1758227584913,1.31265284,117580.0,117570.0,1.72158028]
[1758227585307,0.8907013,117580.0,117570.0,1.72158028]
[1758227585506,1.31257284,117580.0,117570.0,1.72158028]
[1758227586717,2.20257284,117580.0,117570.0,1.72158028]
[1758227586916,2.20257284,117580.0,117570.0,1.87374793]
[1758227587310,2.20257284,117580.0,117570.0,1.89091752]
[1758227588713,0.03629,117580.0,117570.0,1.89091752]
[1758227588910,0.76968,117580.0,117570.0,2.32585906]
[1758227589214,0.76968,117580.0,117570.0,1.90398752]
[1758227589514,0.76968,117580.0,117570.0,1.75181987]
[1758227592420,0.76968,117580.0,117570.0,2.17369141]
[1758227593116,1.43321084,117590.0,117580.0,0.1061914]
[1758227593416,2.20271084,117590.0,117580.0,1.89073448]
[1758227594116,2.20271084,117590.0,117580.0,1.46886294]
[1758227595021,2.20271084,117590.0,117580.0,1.46986294]
[1758227595917,1.43311084,117590.0,117580.0,1.46986294]
[1758227596118,2.20275084,117590.0,117580.0,1.89173448]
[1758227596314,1.43311084,117590.0,117580.0,1.89173448]
[1758227596620,1.82432476,117600.0,117590.0,0.1198841]
[1758227596823,2.60329476,117600.0,117590.0,2.17189212]
[1758227597221,1.81096476,117600.0,117590.0,2.49003388]
[1758227597425,2.58084476,117600.0,117590.0,2.49003388]
[1758227597620,0.78972476,117600.0,117590.0,2.49003388]
[1758227598016,0.76988,117600.0,117590.0,2.49003388]
[1758227598316,0.771,117600.0,117590.0,2.49003388]
[1758227601821,0.77116,117600.0,117590.0,2.49003388]
[1758227603213,0.001,117600.0,117590.0,2.49003388]
[1758227603415,0.77108,117600.0,117590.0,2.49003388]
[1758227605024,0.77108,117600.0,117590.0,2.24003388]
[1758227605725,0.77108,117600.0,117590.0,1.95840372]
[1758227607928,0.69875866,117600.0,117590.0,1.95840372]
[1758227608528,0.69875866,117600.0,117590.0,1.95940372]
[1758227610830,0.69540313,117600.0,117590.0,1.95940372]
[1758227611629,0.0001,117610.0,117600.0,0.0849969]
[1758227611822,0.8784064,117620.0,117610.0,0.1200896]
[1758227612021,0.8783064,117620.0,117610.0,1.63194606]
[1758227613926,0.8803064,117620.0,117610.0,1.63194606]
[1758227614122,0.8938864,117620.0,117610.0,1.54695646]
[1758227614329,0.8938864,117620.0,117610.0,1.53313646]
[1758227614528,1.17594286,117620.0,117610.0,1.53313646]
[1758227614923,1.17594286,117620.0,117610.0,1.25208]
[1758227615128,1.17594286,117620.0,117610.0,0.89128]
[1758227615328,1.17594286,117620.0,117610.0,1.17233646]
[1758227617735,1.17598286,117620.0,117610.0,1.17233646]
[1758227618733,1.17598286,117620.0,117610.0,1.25732606]
[1758227619333,1.17598286,117620.0,117610.0,1.17233646]
[1758227621038,0.8949264,117620.0,117610.0,1.17233646]
[1758227621230,1.17598286,117620.0,117610.0,1.17233646]
[1758227622131,1.17598286,117620.0,117610.0,0.89128]
[1758227622332,1.17598286,117620.0,117610.0,1.17233646]
[1758227624334,1.17598286,117620.0,117610.0,0.89128]
[1758227632737,0.40594286,117620.0,117610.0,0.89128]
[1758227632944,1.17610286,117620.0,117610.0,0.89128]
[1758227633444,1.17610286,117620.0,117610.0,1.17233646]
[1758227635645,0.40594286,117620.0,117610.0,1.17233646]
[1758227635846,1.17598286,117620.0,117610.0,1.17233646]
[1758227640548,1.17582286,117620.0,117610.0,1.17233646]
[1758227642456,1.17582286,117620.0,117610.0,0.89128]
[1758227642748,1.45687932,117620.0,117610.0,0.55]
[1758227644846,0.8947664,117620.0,117610.0,0.55]
[1758227645053,1.45687932,117620.0,117610.0,0.55]
[1758227648050,0.0986796,117610.0,117600.0,0.01701579]
[1758227648254,0.76331606,117610.0,117600.0,0.91941579]
[1758227648753,0.40251606,117610.0,117600.0,1.20047225]
[1758227649154,0.40251606,117610.0,117600.0,0.91941579]
[1758227649550,0.40351606,117610.0,117600.0,0.91941579]
[1758227650357,0.40351606,117610.0,117600.0,0.94941579]
[1758227653155,0.40351606,117610.0,117600.0,0.88941579]
[1758227655354,1.17335606,117610.0,117600.0,0.88941579]
[1758227655555,0.8922996,117610.0,117600.0,0.88941579]
[1758227655752,1.17335606,117610.0,117600.0,0.88941579]
[1758227656450,1.13688606,117610.0,117600.0,0.86691579]
[1758227657053,1.49768606,117610.0,117600.0,0.85]
[1758227657656,1.13688606,117610.0,117600.0,0.69]
[1758227657852,1.13688606,117610.0,117600.0,0.13]
[1758227658058,0.0849957,117600.0,117590.0,0.4465067]
[1758227658259,0.36605216,117600.0,117590.0,1.2464067]
[1758227659161,0.64710862,117600.0,117590.0,0.58814176]
[1758227659358,1.41682862,117600.0,117590.0,0.58814176]
[1758227659858,1.68052862,117600.0,117590.0,0.58814176]
[1758227660259,1.68052862,117600.0,117590.0,0.58914176]
[1758227661456,1.68052862,117600.0,117590.0,0.06914176]
[1758227661654,1.68052862,117600.0,117590.0,0.27914176]
[1758227662254,1.68052862,117600.0,117590.0,0.211]
[1758227662255,1.00790862,117600.0,117590.0,0.211]
[1758227662459,1.77782862,117600.0,117590.0,0.211]
[1758227665659,1.00790862,117600.0,117590.0,0.211]
[1758227666855,1.77774862,117600.0,117590.0,0.211]
[1758227667256,1.00790862,117600.0,117590.0,0.211]
[1758227667458,1.77774862,117600.0,117590.0,0.211]
[1758227667861,2.05931798,117600.0,117590.0,0.211]
[1758227668164,1.28947798,117600.0,117590.0,0.211]
[1758227668551,2.05939798,117600.0,117590.0,0.211]
[1758227669462,1.28947798,117600.0,117590.0,0.211]
[1758227669662,2.05939798,117600.0,117590.0,0.211]
[1758227670065,1.28947798,117600.0,117590.0,0.211]
[1758227670466,2.05943798,117600.0,117590.0,0.211]
[1758227674968,2.05931798,117600.0,117590.0,0.211]
[1758227677970,1.28947798,117600.0,117590.0,0.211]
[1758227678170,2.05919798,117600.0,117590.0,0.211]
[1758227680272,1.28947798,117600.0,117590.0,0.211]
[1758227680870,1.69831798,117600.0,117590.0,0.211]
[1758227681073,0.92867798,117600.0,117590.0,0.211]
[1758227681372,1.28947798,117600.0,117590.0,0.211]
[1758227681767,2.05907798,117600.0,117590.0,0.211]
[1758227682768,1.28947798,117600.0,117590.0,0.211]
[1758227683168,2.05927798,117600.0,117590.0,0.211]
[1758227692980,1.69847798,117600.0,117590.0,0.211]
[1758227693185,2.05927798,117600.0,117590.0,0.211]
[1758227701293,2.05927798,117600.0,117590.0,0.22817574]
[1758227701890,2.48111912,117600.0,117590.0,0.211]
[1758227702188,0.0850009,117590.0,117580.0,0.0001]
[1758227702393,0.0850067,117580.0,117570.0,0.37806959]
[1758227702592,0.0850067,117580.0,117570.0,0.92796959]
[1758227702593,1.69812898,117580.0,117570.0,0.92796959]
[1758227702787,2.05892898,117580.0,117570.0,0.56716959]
[1758227702985,1.69812898,117580.0,117570.0,0.56716959]
[1758227703190,1.69812898,117580.0,117570.0,0.55]
[1758227703995,1.69812898,117580.0,117570.0,0.553]
[1758227704896,1.69912898,117580.0,117570.0,0.555]
[1758227707301,2.05992898,117580.0,117570.0,0.555]
[1758227708700,2.05996898,117580.0,117570.0,0.555]
[1758227709402,2.05996898,117580.0,117570.0,0.465]
[1758227711504,1.29048898,117580.0,117570.0,0.465]
[1758227711805,2.06000898,117580.0,117570.0,0.465]
[1758227713905,2.06000898,117580.0,117570.0,0.425]
[1758227714704,1.29048898,117580.0,117570.0,0.425]
[1758227714909,2.06000898,117580.0,117570.0,0.425]
[1758227716500,2.09615898,117580.0,117570.0,0.425]
[1758227717106,2.09615898,117580.0,117570.0,0.065]
[1758227717305,2.09615898,117580.0,117570.0,0.385]
[1758227717804,2.09615898,117580.0,117570.0,0.055]
[1758227718108,2.09615898,117580.0,117570.0,0.005]
[1758227718516,1.32663898,117580.0,117570.0,0.005]
[1758227718807,2.09615898,117580.0,117570.0,0.005]
[1758227719206,1.32663898,117580.0,117570.0,0.005]
[1758227719406,2.09615898,117580.0,117570.0,0.005]
[1758227720608,1.32663898,117580.0,117570.0,0.005]
[1758227720812,2.09615898,117580.0,117570.0,0.005]
[1758227722006,1.32663898,117580.0,117570.0,0.005]
[1758227722209,2.09615898,117580.0,117570.0,0.005]
[1758227722410,1.32663898,117580.0,117570.0,0.005]
[1758227722713,2.09615898,117580.0,117570.0,0.005]
[1758227722901,0.4829567,117580.0,117570.0,0.005]
[1758227723199,2.09615898,117580.0,117570.0,0.005]
[1758227724408,1.32663898,117580.0,117570.0,0.005]
[1758227724808,2.09615898,117580.0,117570.0,0.005]
[1758227725213,1.32663898,117580.0,117570.0,0.005]
[1758227725411,1.2524767,117580.0,117570.0,0.02678]
[1758227725609,2.09615898,117580.0,117570.0,0.005]
[1758227726213,1.32663898,117580.0,117570.0,0.02678]
[1758227726411,1.32663898,117580.0,117570.0,0.005]
[1758227726612,2.09615898,117580.0,117570.0,0.005]
[1758227727814,1.81511462,117580.0,117570.0,0.005]
[1758227728809,1.04559462,117580.0,117570.0,0.005]
[1758227729908,1.81511462,117580.0,117570.0,0.005]
[1758227730103,1.04559462,117580.0,117570.0,0.005]
[1758227730304,1.81511462,117580.0,117570.0,0.005]
[1758227731014,1.04559462,117580.0,117570.0,0.005]
[1758227731314,1.81511462,117580.0,117570.0,0.005]
[1758227734511,2.70511462,117580.0,117570.0,0.005]
[1758227739419,1.81511462,117580.0,117570.0,0.005]
[1758227743422,2.70511462,117580.0,117570.0,0.005]
[1758227748426,1.81511462,117580.0,117570.0,0.005]
[1758227754438,1.81511462,117580.0,117570.0,0.02777]
[1758227756244,1.81511462,117580.0,117570.0,0.32777]
[1758227761051,1.04559462,117580.0,117570.0,0.32777]
[1758227761238,0.4829567,117580.0,117570.0,0.32777]
[1758227761442,1.53379566,117580.0,117570.0,0.32777]
[1758227762349,0.76427566,117580.0,117570.0,0.32777]
[1758227762649,1.53379566,117580.0,117570.0,0.93171896]
[1758227762850,1.2524767,117580.0,117570.0,0.62171896]
[1758227763051,1.53379566,117580.0,117570.0,0.90171896]
[1758227764054,1.53379566,117580.0,117570.0,0.88908896]
[1758227767459,1.17299566,117580.0,117570.0,0.88908896]
[1758227767757,1.17299566,117580.0,117570.0,0.30908896]
[1758227767960,1.17299566,117580.0,117570.0,0.95908896]
[1758227768862,0.8916767,117580.0,117570.0,0.95908896]
[1758227769060,1.17299566,117580.0,117570.0,0.95908896]
[1758227769959,0.8916767,117580.0,117570.0,0.95908896]
[1758227770161,1.17299566,117580.0,117570.0,0.95908896]
[1758227774063,0.8786667,117580.0,117570.0,1.41753726]
[1758227776466,0.8786667,117580.0,117570.0,1.39753726]
[1758227776467,0.8786311,117580.0,117570.0,1.39753726]
[1758227779766,0.0241,117580.0,117570.0,1.64753726]
[1758227779965,0.001,117580.0,117570.0,2.03552652]
[1758227780166,0.77052,117580.0,117570.0,2.03552652]
[1758227780366,0.77052,117580.0,117570.0,1.92885622]
[1758227781368,0.76031519,117580.0,117570.0,2.18759864]
[1758227781870,0.76031519,117580.0,117570.0,2.08102387]
[1758227782264,0.76031519,117580.0,117570.0,1.92885622]
[1758227784970,0.2638,117590.0,117570.0,1.92885622]
[1758227784971,0.2638,117590.0,117580.0,0.1199911]
[1758227785172,1.03326,117590.0,117580.0,2.07296014]
[1758227786171,1.03326,117590.0,117580.0,2.07596014]
[1758227786567,1.1182638,117590.0,117580.0,2.07596014]
[1758227786768,1.1182638,117590.0,117580.0,1.92387986]
[1758227789769,1.1182638,117590.0,117580.0,2.2047035]
[1758227798081,1.1180638,117590.0,117580.0,2.2047035]
[1758227799490,0.3487038,117590.0,117580.0,2.2047035]
[1758227799785,1.1180638,117590.0,117580.0,2.2047035]
[1758227800381,1.03314,117590.0,117580.0,2.73286605]
[1758227800586,0.0001,117600.0,117590.0,0.03498]
[1758227800789,0.0850923,117610.0,117600.0,0.1199766]
[1758227801083,0.8545923,117610.0,117600.0,2.33063112]
[1758227801284,0.8545923,117610.0,117600.0,2.22423816]
[1758227801486,0.1069769,117620.0,117610.0,0.1199694]
[1758227801683,0.8764769,117620.0,117610.0,1.89888226]
[1758227802186,0.9968769,117620.0,117610.0,1.9655983]
[1758227802386,1.7664769,117620.0,117610.0,1.9655983]
[1758227802773,0.8784769,117620.0,117610.0,1.9655983]
[1758227803383,0.8783969,117620.0,117610.0,2.38732908]
[1758227803686,0.8783969,117620.0,117610.0,1.9455983]
[1758227804192,0.8793969,117620.0,117610.0,1.9455983]
[1758227804689,0.8793969,117620.0,117610.0,1.95418732]
[1758227808591,0.02489,117620.0,117610.0,2.3759181]
[1758227808793,0.8574621,117620.0,117610.0,2.3759181]
[1758227808997,1.1211621,117620.0,117610.0,2.3759181]
[1758227809190,1.1211621,117620.0,117610.0,2.26953602]
[1758227809389,0.26674,117620.0,117610.0,2.26953602]
[1758227809593,1.03618,117620.0,117610.0,2.26953602]
[1758227810096,1.03618,117620.0,117610.0,2.37588219]
[1758227810901,1.03518,117620.0,117610.0,2.27053602]